[Event "Elitserien 2019/2020, round 7-9"]
[Site "Elite stadshotellet, Kungsgatan 6, Vaxjo, Sweden"]
[Date "2020.10.16"]
[Round "1.10"]
[White "Hillarp Persson, Tiger"]
[Black "Westerberg, Jonathan"]
[Result "1/2-1/2"]
[TimeControl "90 minutes for 40 moves + 30 minutes for the rest of the game + 30 seconds per move from move one."]
[WhiteTitle "GM"]
[BlackTitle "IM"]
[WhiteFideId "1700812"]
[BlackFideId "1701754"]
[WhiteElo "2546"]
[BlackElo "2556"]

1. c4 {[%clk 01:30:52]} {[%emt 00:00:07]} e5 {[%clk 01:28:19]} {[%emt
00:02:40]} 2. g3 {[%clk 01:30:36]} {[%emt 00:00:47]} Nc6 {[%clk 01:25:20]}
{[%emt 00:03:29]} 3. Nc3 {[%clk 01:29:35]} {[%emt 00:01:31]} Bb4 {[%clk
01:22:43]} {[%emt 00:03:07]} 4. Nd5 {[%clk 01:27:07]} {[%emt 00:02:58]} Bc5
{[%clk 01:21:11]} {[%emt 00:02:02]} 5. Bg2 {[%clk 01:27:09]} {[%emt 00:00:27]}
Nf6 {[%clk 01:20:01]} {[%emt 00:01:39]} 6. Nf3 {[%clk 01:26:37]} {[%emt
00:01:04]} O-O {[%clk 01:16:55]} {[%emt 00:03:37]} 7. d3 {[%clk 01:03:42]}
{[%emt 00:23:25]} h6 {[%clk 01:12:48]} {[%emt 00:04:35]} 8. O-O {[%clk
01:03:30]} {[%emt 00:00:43]} d6 {[%clk 01:11:08]} {[%emt 00:02:09]} 9. e3
{[%clk 01:00:16]} {[%emt 00:03:45]} a6 {[%clk 01:06:48]} {[%emt 00:04:51]} 10.
b3 {[%clk 00:49:16]} {[%emt 00:11:29]} Ba7 {[%clk 01:02:58]} {[%emt 00:04:20]}
11. Nd2 {[%clk 00:47:33]} {[%emt 00:02:12]} Bf5 {[%clk 00:58:51]} {[%emt
00:04:37]} 12. Qe2 {[%clk 00:47:32]} {[%emt 00:00:32]} Nxd5 {[%clk 00:55:39]}
{[%emt 00:03:42]} 13. cxd5 {[%clk 00:47:52]} {[%emt 00:00:10]} Ne7 {[%clk
00:56:00]} {[%emt 00:00:09]} 14. Nc4 {[%clk 00:45:50]} {[%emt 00:02:32]} Qd7
{[%clk 00:54:33]} {[%emt 00:01:57]} 15. e4 {[%clk 00:42:06]} {[%emt 00:04:15]}
Bh3 {[%clk 00:47:32]} {[%emt 00:07:30]} 16. Be3 {[%clk 00:42:26]} {[%emt
00:00:10]} Bxg2 {[%clk 00:47:23]} {[%emt 00:00:40]} 17. Kxg2 {[%clk 00:42:48]}
{[%emt 00:00:07]} b5 {[%clk 00:45:03]} {[%emt 00:02:49]} 18. Bxa7 {[%clk
00:40:06]} {[%emt 00:03:13]} bxc4 {[%clk 00:43:45]} {[%emt 00:01:48]} 19. Be3
{[%clk 00:40:16]} {[%emt 00:00:19]} cxb3 {[%clk 00:39:50]} {[%emt 00:04:25]} 20.
axb3 {[%clk 00:40:38]} {[%emt 00:00:09]} c6 {[%clk 00:38:43]} {[%emt 00:01:37]}
21. dxc6 {[%clk 00:41:01]} {[%emt 00:00:08]} Qxc6 {[%clk 00:38:29]} {[%emt
00:00:43]} 22. Rfc1 {[%clk 00:38:57]} {[%emt 00:02:34]} Qb7 {[%clk 00:38:10]}
{[%emt 00:00:49]} 23. Qc2 {[%clk 00:30:39]} {[%emt 00:08:48]} Rfc8 {[%clk
00:36:09]} {[%emt 00:02:31]} 24. Qa2 {[%clk 00:30:35]} {[%emt 00:00:35]} d5
{[%clk 00:33:42]} {[%emt 00:02:57]} 25. Qa4 {[%clk 00:26:22]} {[%emt 00:04:42]}
dxe4 {[%clk 00:32:12]} {[%emt 00:02:00]} 26. dxe4 {[%clk 00:25:49]} {[%emt
00:01:03]} Nf5 {[%clk 00:31:43]} {[%emt 00:00:58]} 27. Bc5 {[%clk 00:24:17]}
{[%emt 00:02:03]} Nd4 {[%clk 00:30:49]} {[%emt 00:01:23]} 28. Bxd4 {[%clk
00:23:54]} {[%emt 00:00:53]} Rxc1 {[%clk 00:28:51]} {[%emt 00:02:28]} 29. Rxc1
{[%clk 00:24:15]} {[%emt 00:00:09]} Qxe4+ {[%clk 00:29:17]} {[%emt 00:00:04]}
30. Kg1 {[%clk 00:21:10]} {[%emt 00:03:34]} exd4 {[%clk 00:26:40]} {[%emt
00:03:07]} 31. Rd1 {[%clk 00:21:31]} {[%emt 00:00:09]} Rd8 {[%clk 00:24:20]}
{[%emt 00:02:47]} 32. Qxa6 {[%clk 00:21:54]} {[%emt 00:00:11]} d3 {[%clk
00:24:05]} {[%emt 00:00:45]} 33. Qa5 {[%clk 00:19:17]} {[%emt 00:03:06]} Rd5
{[%clk 00:22:11]} {[%emt 00:02:23]} 34. Qd2 {[%clk 00:17:59]} {[%emt 00:01:49]}
Qe2 {[%clk 00:20:17]} {[%emt 00:02:24]} 1/2-1/2

[Event "Elitserien 2019/2020, round 7-9"]
[Site "Elite stadshotellet, Kungsgatan 6, Vaxjo, Sweden"]
[Date "2020.10.16"]
[Round "1.11"]
[White "Hauge, Lars Oskar"]
[Black "Smith, Axel"]
[Result "1/2-1/2"]
[TimeControl "90 minutes for 40 moves + 30 minutes for the rest of the game + 30 seconds per move from move one."]
[WhiteTitle "IM"]
[BlackTitle "GM"]
[WhiteFideId "1509276"]
[BlackFideId "1707930"]
[WhiteElo "2493"]
[BlackElo "2469"]

1. e4 {[%clk 01:30:55]} {[%emt 00:00:03]} e6 {[%clk 01:30:59]} {[%emt
00:00:02]} 2. d4 {[%clk 01:30:18]} {[%emt 00:01:08]} d5 {[%clk 01:31:27]}
{[%emt 00:00:02]} 3. Nd2 {[%clk 01:30:11]} {[%emt 00:00:36]} c5 {[%clk
01:31:55]} {[%emt 00:00:03]} 4. exd5 {[%clk 01:29:55]} {[%emt 00:00:45]} Qxd5
{[%clk 01:32:21]} {[%emt 00:00:05]} 5. dxc5 {[%clk 01:28:04]} {[%emt 00:02:21]}
Bxc5 {[%clk 01:32:42]} {[%emt 00:00:08]} 6. Ngf3 {[%clk 01:28:24]} {[%emt
00:00:10]} Nf6 {[%clk 01:33:07]} {[%emt 00:00:05]} 7. Bc4 {[%clk 01:28:04]}
{[%emt 00:00:49]} Qc6 {[%clk 01:33:32]} {[%emt 00:00:06]} 8. Qe2 {[%clk
01:25:59]} {[%emt 00:02:36]} O-O {[%clk 01:33:57]} {[%emt 00:00:05]} 9. O-O
{[%clk 01:26:21]} {[%emt 00:00:08]} a6 {[%clk 01:23:25]} {[%emt 00:11:01]} 10.
Bd3 {[%clk 01:26:20]} {[%emt 00:00:31]} Nbd7 {[%clk 01:23:09]} {[%emt
00:00:47]} 11. Ne4 {[%clk 01:11:48]} {[%emt 00:15:02]} Nxe4 {[%clk 01:23:24]}
{[%emt 00:00:16]} 12. Bxe4 {[%clk 01:10:18]} {[%emt 00:02:00]} Qc7 {[%clk
01:23:42]} {[%emt 00:00:12]} 13. Bd3 {[%clk 01:08:49]} {[%emt 00:01:59]} Nf6
{[%clk 01:23:24]} {[%emt 00:00:48]} 14. Bg5 {[%clk 00:58:40]} {[%emt 00:10:39]}
h6 {[%clk 01:23:41]} {[%emt 00:00:13]} 15. Bxf6 {[%clk 00:55:09]} {[%emt
00:04:00]} gxf6 {[%clk 01:24:10]} {[%emt 00:00:01]} 16. Rad1 {[%clk 00:51:16]}
{[%emt 00:04:22]} Re8 {[%clk 01:03:20]} {[%emt 00:21:20]} 17. Rfe1 {[%clk
00:50:14]} {[%emt 00:01:33]} Qf4 {[%clk 00:44:11]} {[%emt 00:19:37]} 18. g3
{[%clk 00:42:48]} {[%emt 00:07:57]} Qg4 {[%clk 00:43:26]} {[%emt 00:01:15]} 19.
Kg2 {[%clk 00:36:28]} {[%emt 00:06:51]} e5 {[%clk 00:36:37]} {[%emt 00:07:19]}
20. Nh4 {[%clk 00:34:25]} {[%emt 00:02:33]} Qxe2 {[%clk 00:32:58]} {[%emt
00:04:08]} 21. Rxe2 {[%clk 00:32:01]} {[%emt 00:02:55]} Be6 {[%clk 00:29:47]}
{[%emt 00:03:42]} 22. Be4 {[%clk 00:30:20]} {[%emt 00:02:11]} Rad8 {[%clk
00:27:38]} {[%emt 00:02:38]} 23. Red2 {[%clk 00:22:20]} {[%emt 00:08:30]} Rxd2
{[%clk 00:28:00]} {[%emt 00:00:08]} 24. Rxd2 {[%clk 00:22:45]} {[%emt
00:00:05]} b5 {[%clk 00:25:49]} {[%emt 00:02:40]} 25. Kf3 {[%clk 00:16:26]}
{[%emt 00:06:49]} b4 {[%clk 00:20:19]} {[%emt 00:06:01]} 26. Nf5 {[%clk
00:11:47]} {[%emt 00:05:09]} h5 {[%clk 00:07:05]} {[%emt 00:13:44]} 27. Ne3
{[%clk 00:10:46]} {[%emt 00:01:31]} Bd4 {[%clk 00:07:01]} {[%emt 00:00:35]} 28.
b3 {[%clk 00:07:21]} {[%emt 00:03:55]} Rb8 {[%clk 00:02:27]} {[%emt 00:05:03]}
29. Bd5 {[%clk 00:04:43]} {[%emt 00:03:09]} Bd7 {[%clk 00:01:29]} {[%emt
00:01:28]} 30. Ke2 {[%clk 00:04:08]} {[%emt 00:01:05]} Rb5 {[%clk 00:01:38]}
{[%emt 00:00:20]} 31. Bf3 {[%clk 00:02:06]} {[%emt 00:02:32]} Kg7 {[%clk
00:01:17]} {[%emt 00:00:51]} 32. Bxh5 {[%clk 00:01:51]} {[%emt 00:00:45]} Ra5
{[%clk 00:01:46]} {[%emt 00:00:02]} 33. Bg4 {[%clk 00:01:28]} {[%emt 00:00:52]}
Bb5+ {[%clk 00:01:01]} {[%emt 00:01:14]} 34. Kf3 {[%clk 00:01:49]} {[%emt
00:00:09]} Bc6+ {[%clk 00:01:13]} {[%emt 00:00:19]} 35. Ke2 {[%clk 00:02:15]}
{[%emt 00:00:04]} Bb5+ {[%clk 00:01:20]} {[%emt 00:00:23]} 36. Kf3 {[%clk
00:02:39]} {[%emt 00:00:05]} Bc6+ {[%clk 00:01:07]} {[%emt 00:00:43]} 37. Ke2
{[%clk 00:03:00]} {[%emt 00:00:09]} 1/2-1/2

[Event "Elitserien 2019/2020, round 7-9"]
[Site "Elite stadshotellet, Kungsgatan 6, Vaxjo, Sweden"]
[Date "2020.10.16"]
[Round "1.12"]
[White "Ahlander, Bjorn"]
[Black "Ertan, Can"]
[Result "0-1"]
[TimeControl "90 minutes for 40 moves + 30 minutes for the rest of the game + 30 seconds per move from move one."]
[WhiteTitle "IM"]
[BlackTitle "IM"]
[WhiteFideId "1700251"]
[BlackFideId "6306330"]
[WhiteElo "2418"]
[BlackElo "2387"]

1. d4 {[%clk 01:30:56]} {[%emt 00:00:03]} Nf6 {[%clk 01:30:57]} {[%emt
00:00:04]} 2. c4 {[%clk 01:31:14]} {[%emt 00:00:11]} e6 {[%clk 01:31:25]}
{[%emt 00:00:04]} 3. g3 {[%clk 01:31:10]} {[%emt 00:00:33]} d5 {[%clk
01:31:51]} {[%emt 00:00:05]} 4. Bg2 {[%clk 01:31:15]} {[%emt 00:00:23]} dxc4
{[%clk 01:32:16]} {[%emt 00:00:07]} 5. Nf3 {[%clk 01:31:21]} {[%emt 00:00:23]}
Bb4+ {[%clk 01:32:43]} {[%emt 00:00:04]} 6. Bd2 {[%clk 01:30:31]} {[%emt
00:01:19]} a5 {[%clk 01:33:12]} {[%emt 00:00:02]} 7. O-O {[%clk 01:28:28]}
{[%emt 00:02:31]} O-O {[%clk 01:33:27]} {[%emt 00:00:16]} 8. Na3 {[%clk
01:22:53]} {[%emt 00:06:04]} Bxa3 {[%clk 01:27:43]} {[%emt 00:06:15]} 9. bxa3
{[%clk 01:22:45]} {[%emt 00:00:37]} Nc6 {[%clk 01:28:07]} {[%emt 00:00:07]} 10.
e3 {[%clk 01:15:08]} {[%emt 00:08:05]} Qd6 {[%clk 01:19:31]} {[%emt 00:09:07]}
11. Qc1 {[%clk 01:05:05]} {[%emt 00:10:33]} Rd8 {[%clk 01:13:15]} {[%emt
00:06:46]} 12. Rd1 {[%clk 00:54:55]} {[%emt 00:10:40]} e5 {[%clk 01:03:33]}
{[%emt 00:10:13]} 13. dxe5 {[%clk 00:32:34]} {[%emt 00:22:49]} Nxe5 {[%clk
01:03:54]} {[%emt 00:00:10]} 14. Nxe5 {[%clk 00:32:43]} {[%emt 00:00:21]} Qxe5
{[%clk 01:04:21]} {[%emt 00:00:04]} 15. Bc3 {[%clk 00:32:36]} {[%emt 00:00:36]}
Rxd1+ {[%clk 01:04:48]} {[%emt 00:00:04]} 16. Qxd1 {[%clk 00:32:55]} {[%emt
00:00:10]} Qe7 {[%clk 01:05:16]} {[%emt 00:00:02]} 17. Qd4 {[%clk 00:32:14]}
{[%emt 00:01:10]} c6 {[%clk 01:05:13]} {[%emt 00:00:33]} 18. Qxc4 {[%clk
00:27:54]} {[%emt 00:04:49]} Qxa3 {[%clk 01:05:38]} {[%emt 00:00:06]} 19. Bd4
{[%clk 00:15:08]} {[%emt 00:13:14]} Be6 {[%clk 00:57:19]} {[%emt 00:08:52]} 20.
Qc2 {[%clk 00:15:35]} {[%emt 00:00:02]} Rd8 {[%clk 00:53:33]} {[%emt 00:04:16]}
21. Rb1 {[%clk 00:13:31]} {[%emt 00:02:34]} Bc8 {[%clk 00:51:40]} {[%emt
00:02:23]} 22. Bxf6 {[%clk 00:10:59]} {[%emt 00:03:02]} gxf6 {[%clk 00:51:52]}
{[%emt 00:00:18]} 23. Be4 {[%clk 00:11:17]} {[%emt 00:00:10]} h6 {[%clk
00:50:47]} {[%emt 00:01:37]} 24. Bf5 {[%clk 00:11:34]} {[%emt 00:00:12]} Bxf5
{[%clk 00:47:00]} {[%emt 00:04:19]} 25. Qxf5 {[%clk 00:12:00]} {[%emt
00:00:03]} Qxa2 {[%clk 00:47:26]} {[%emt 00:00:05]} 26. Qg4+ {[%clk 00:07:59]}
{[%emt 00:04:30]} Kf8 {[%clk 00:47:53]} {[%emt 00:00:04]} 27. Rxb7 {[%clk
00:07:45]} {[%emt 00:00:43]} Qc2 {[%clk 00:48:11]} {[%emt 00:00:11]} 28. Kg2
{[%clk 00:04:54]} {[%emt 00:03:21]} f5 {[%clk 00:46:36]} {[%emt 00:02:05]} 29.
Qh4 {[%clk 00:02:06]} {[%emt 00:03:19]} Qe4+ {[%clk 00:46:58]} {[%emt
00:00:09]} 30. Qxe4 {[%clk 00:01:41]} {[%emt 00:00:54]} fxe4 {[%clk 00:47:24]}
{[%emt 00:00:05]} 31. Ra7 {[%clk 00:02:08]} {[%emt 00:00:03]} Rd5 {[%clk
00:47:13]} {[%emt 00:00:41]} 32. g4 {[%clk 00:01:50]} {[%emt 00:00:48]} h5
{[%clk 00:32:35]} {[%emt 00:15:09]} 33. Kg3 {[%clk 00:02:17]} {[%emt 00:00:03]}
hxg4 {[%clk 00:32:42]} {[%emt 00:00:23]} 34. Kxg4 {[%clk 00:02:31]} {[%emt
00:00:15]} Kg7 {[%clk 00:28:31]} {[%emt 00:04:42]} 35. Kf4 {[%clk 00:02:25]}
{[%emt 00:00:36]} Rd2 {[%clk 00:28:26]} {[%emt 00:00:34]} 36. Rxa5 {[%clk
00:01:04]} {[%emt 00:01:52]} Rxf2+ {[%clk 00:28:52]} {[%emt 00:00:04]} 37. Kxe4
{[%clk 00:01:27]} {[%emt 00:00:07]} Rxh2 {[%clk 00:29:19]} {[%emt 00:00:04]} 38.
Ra7 {[%clk 00:00:52]} {[%emt 00:01:03]} Kf6 {[%clk 00:27:00]} {[%emt 00:02:49]}
39. Kd3 {[%clk 00:00:46]} {[%emt 00:00:37]} Rh1 {[%clk 00:26:43]} {[%emt
00:00:47]} 40. Rc7 {[%clk 00:00:56]} {[%emt 00:00:19]} Rc1 {[%clk 00:27:09]}
{[%emt 00:00:04]} 41. Ke4 {[%clk 00:00:33]} {[%emt 00:00:53]} Ke6 {[%clk
00:26:56]} {[%emt 00:00:43]} 42. Rc8 {[%clk 00:00:33]} {[%emt 00:00:30]} Kd6
{[%clk 00:16:29]} {[%emt 00:10:57]} 43. Rf8 {[%clk 00:00:46]} {[%emt 00:00:16]}
Rf1 {[%clk 00:11:33]} {[%emt 00:05:27]} 44. Kd4 {[%clk 00:01:09]} {[%emt
00:00:06]} Rd1+ {[%clk 00:12:00]} {[%emt 00:00:04]} 45. Ke4 {[%clk 00:00:33]}
{[%emt 00:01:05]} Ke7 {[%clk 00:11:49]} {[%emt 00:00:42]} 46. Rc8 {[%clk
00:28:30]} {[%emt 00:02:33]} Kd7 {[%clk 00:42:09]} {[%emt 00:00:10]} 47. Rf8
{[%clk 00:28:31]} {[%emt 00:00:28]} Ke6 {[%clk 00:42:27]} {[%emt 00:00:12]} 48.
Re8+ {[%clk 00:28:15]} {[%emt 00:00:46]} Kf6 {[%clk 00:42:31]} {[%emt
00:00:26]} 49. Rc8 {[%clk 00:27:45]} {[%emt 00:00:59]} Rd6 {[%clk 00:42:58]}
{[%emt 00:00:04]} 50. Kf4 {[%clk 00:25:05]} {[%emt 00:03:09]} Kg6 {[%clk
00:43:02]} {[%emt 00:00:26]} 51. e4 {[%clk 00:23:19]} {[%emt 00:02:17]} Rf6+
{[%clk 00:43:22]} {[%emt 00:00:11]} 52. Ke5 {[%clk 00:22:21]} {[%emt 00:01:27]}
Re6+ {[%clk 00:43:21]} {[%emt 00:00:31]} 53. Kf4 {[%clk 00:22:01]} {[%emt
00:00:50]} Rf6+ {[%clk 00:42:38]} {[%emt 00:01:14]} 54. Ke5 {[%clk 00:22:24]}
{[%emt 00:00:06]} Kg5 {[%clk 00:42:42]} {[%emt 00:00:27]} 55. Rc7 {[%clk
00:15:56]} {[%emt 00:06:58]} Re6+ {[%clk 00:42:59]} {[%emt 00:00:13]} 56. Kd4
{[%clk 00:16:24]} {[%emt 00:00:02]} f6 {[%clk 00:42:23]} {[%emt 00:01:07]} 57.
Rh7 {[%clk 00:12:34]} {[%emt 00:04:19]} c5+ {[%clk 00:40:40]} {[%emt 00:02:14]}
58. Kd3 {[%clk 00:10:10]} {[%emt 00:02:53]} c4+ {[%clk 00:41:01]} {[%emt
00:00:10]} 59. Kd4 {[%clk 00:09:54]} {[%emt 00:00:45]} c3 {[%clk 00:40:41]}
{[%emt 00:00:50]} 60. Rh1 {[%clk 00:06:55]} {[%emt 00:03:28]} c2 {[%clk
00:39:46]} {[%emt 00:01:27]} 61. Rc1 {[%clk 00:02:52]} {[%emt 00:04:33]} Kf4
{[%clk 00:39:12]} {[%emt 00:01:03]} 62. Rf1 {[%clk 00:01:31]} {[%emt 00:01:52]}
Kg3 {[%clk 00:39:34]} {[%emt 00:00:08]} 63. Rc1 {[%clk 00:01:00]} {[%emt
00:01:01]} Kf3 {[%clk 00:39:55]} {[%emt 00:00:09]} 64. Kd3 {[%clk 00:00:33]}
{[%emt 00:00:58]} Rd6+ {[%clk 00:40:05]} {[%emt 00:00:20]} 65. Kc3 {[%clk
00:01:00]} {[%emt 00:00:02]} Rc6+ {[%clk 00:39:40]} {[%emt 00:00:55]} 66. Kd3
{[%clk 00:00:54]} {[%emt 00:00:36]} Rd6+ {[%clk 00:38:15]} {[%emt 00:01:55]} 67.
Kc3 {[%clk 00:01:15]} {[%emt 00:00:10]} Kxe4 {[%clk 00:38:34]} {[%emt
00:00:11]} 68. Re1+ {[%clk 00:01:42]} {[%emt 00:00:02]} Kf3 {[%clk 00:38:57]}
{[%emt 00:00:08]} 69. Kxc2 {[%clk 00:02:05]} {[%emt 00:00:07]} f5 {[%clk
00:38:36]} {[%emt 00:00:51]} 70. Rf1+ {[%clk 00:02:16]} {[%emt 00:00:18]} Kg4
{[%clk 00:38:38]} {[%emt 00:00:29]} 71. Rg1+ {[%clk 00:02:41]} {[%emt
00:00:05]} Kh3 {[%clk 00:38:55]} {[%emt 00:00:13]} 72. Rf1 {[%clk 00:03:05]}
{[%emt 00:00:06]} Rd5 {[%clk 00:39:21]} {[%emt 00:00:04]} 73. Rh1+ {[%clk
00:02:17]} {[%emt 00:01:17]} Kg2 {[%emt 00:00:23]} 74. Rh5 Kg3 {[%clk
00:39:54]} {[%emt 00:00:11]} 75. Rg5+ {[%clk 00:01:21]} {[%emt 00:01:49]} Kf4
{[%clk 00:40:02]} {[%emt 00:00:23]} 76. Rg1 {[%clk 00:01:16]} {[%emt 00:00:35]}
Ke3 {[%clk 00:40:12]} {[%emt 00:00:20]} 77. Rg5 {[%clk 00:01:24]} {[%emt
00:00:23]} Ke4 {[%clk 00:40:35]} {[%emt 00:00:07]} 78. Kc3 {[%clk 00:01:21]}
{[%emt 00:00:32]} Rd8 {[%clk 00:40:49]} {[%emt 00:00:17]} 79. Rg2 {[%clk
00:00:39]} {[%emt 00:01:11]} f4 {[%clk 00:40:50]} {[%emt 00:00:29]} 80. Rh2
{[%clk 00:00:39]} {[%emt 00:00:30]} Ke3 {[%clk 00:41:05]} {[%emt 00:00:16]} 81.
Rh7 {[%clk 00:00:43]} {[%emt 00:00:26]} Rc8+ {[%clk 00:41:28]} {[%emt
00:00:07]} 82. Kb2 {[%clk 00:01:07]} {[%emt 00:00:05]} f3 {[%clk 00:41:44]}
{[%emt 00:00:14]} 83. Re7+ {[%clk 00:01:06]} {[%emt 00:00:30]} Kd2 {[%clk
00:42:10]} {[%emt 00:00:05]} 84. Rd7 {[%clk 00:01:01]} {[%emt 00:00:35]} Ke1
{[%clk 00:42:34]} {[%emt 00:00:06]} 85. Re7+ {[%clk 00:00:53]} {[%emt
00:00:38]} Kf1 {[%clk 00:42:59]} {[%emt 00:00:05]} 86. Re6 {[%clk 00:00:53]}
{[%emt 00:00:29]} f2 {[%clk 00:43:25]} {[%emt 00:00:05]} 87. Rf6 {[%clk
00:01:00]} {[%emt 00:00:23]} Re8 {[%clk 00:43:46]} {[%emt 00:00:09]} 88. Kc2
{[%clk 00:00:55]} {[%emt 00:00:34]} Ke2 {[%clk 00:44:11]} {[%emt 00:00:06]} 0-1